Workbook

Sheet Guide for LAs (hidden)
B2: How to complete the template (guidance for local authorities)
B4: Which projects do I enter information about?
B5: The template is for local authorities to show local groups how they plan to invest in capital projects to get good outcomes for pupils with education, health and care (EHC) plans for their special educational need or disability.
B7: The template should include:
B9: All capital projects at a range of provision including mainstream and special schools designed to create new (additional) places, build new facilities or improve existing facilities to benefit pupils with EHC plans. This includes investment in mainstream and special provision for children and young people aged 0-25.
B10: This must include capital projects funded fully or partially through the special provision fund allocation
B11: This may include expenditure on capital projects funded via other funding (where applicable) up until the financial year 2020/21.
B13: The template should not include whole new centrally-funded free schools. Money from the special provision capital fund cannot be spent on revenue (i.e. staffing costs and training) and revenue expenditure should not be included on the form.
B15: The local authority should not enter costings for any project where this constitutes commercially sensitive information, for example, if contracts have not yet been tendered. The local authority may choose to set out indicative costings and mark this in the comments box. Where all costs are not entered when the plan is first published the local authority should republish the plan once costs can be included.
B18: There are two forms to complete on the 'input form' tab
B19: 1. Project information form | C19: Complete this for each project
B20: 2. Consultation form | C20: Complete this for each group you have consulted about any of the projects. This table must include information about how you have consulted parents and carers.
B21: If you find that you need to enter more rows of information please press the 'Click here if you would like to add a new row' button.
B23: How to enter information:
B25: Click 'Enable content' at the top of the form
B27: Information about overall funding
B29: All information is entered into the 'input form' tab. The information you enter here generates your local authority's plan output.
B30: Select your local authority from the drop-down list at cell E3 'Select Local Authority'.
B31: The amount your local authority will receive from the special provision fund will be automatically added to the cell E5.
B32: In cell E6 [if applicable] enter any other funding that your LA plans to invest in new (additional) places or improvements to facilities for pupils with EHCs plans up until and including for the financial year 2020/21.
B33: In cell L3 enter the date of the last update (today's date).
B35: Information about individual projects
B37: Each project should be entered into the input form. This includes both investment in additional places and investment in facilities in all provision types.
B40: For all projects enter the following information:
B41: Provision URN (column B) | C41: Please enter the URN of the provision (i.e. school, college or other provision) that the project is based at. If the funding is used towards provision that has not yet been built and therefore does not have a URN please leave this cell blank.
B42: Provision name and address (column C) | C42: Enter provision name and address including postcode. If school covers more than one site please enter the address of the site that the project will be located at.
B43: Provision category (column D) | C43: Select provision type from drop-down box. (See a full list at the end of this form showing how provision types are categorised). Select 'other' if provision type is not listed and add further information in the comments box at column N 'Optional additional information'.
B44: Ofsted judgement (column E) | C44: Select from drop-down list the school's Ofsted grading at its last inspection before this plan is published or updated. The grade for special units should be listed as the Ofsted grading of the school.
B45: Age range for project (column F) | C45: Select from drop-down list the age range that the new places or the facilities' improvements are for.
B47: For investment in new (additional) places | C47: Please complete the following column(s) where the project involves creating new school places (adding to the number of places the school can provide)
B48: Special provision fund investment in additional places (column G) | C48: Enter how much the LA plans to invest in new places with funding from the special provision fund
B49: Other investment in additional places (column H) | C49: Where applicable enter how much the LA plans to invest in new places with any other funding.
B50: Special provision fund additional places (column I) | C50: Enter the number of places you plan to create from special provision funding for this project. Where additional places have been created using a combination of the special provision fund and other funding please estimate how many places have been created from each.
B51: Other investment additional places (column J) | C51: Enter the number of places you plan to create from other funding for this project.
B52: Total number of places (column K) | C52: Enter the total number of places that the investment in additional places will create (this should be the same as column I plus column J).
B54: For investment in facilities | C54: Please complete the following column(s) where the project involves improving facilities at the school
B55: Special provision fund investment in facilities (column L) | C55: Enter how much the LA plans to invest in improvements to facilities with money from the special provision fund.
B56: Other investment in facilities (column M) | C56: Where applicable enter how much the LA plans to invest in improvements to facilities with any other funding.
B57: Projects should cover either one or both of the objectives (investment in additional places and/or improvements to facilities). Where projects cover both aims please estimate how much funding will be or is used for additional places and how much goes to improving facilities.
B59: Additional information for each project
B60: Type of SEN or disability that the project is designed to meet (column N) | C60: Please enter information about the needs of the pupils that you plan to create additional places and/or improve facilities for. This could be general, or state specific needs depending upon the purpose of the project and the intake of the school.
B61: Additional information about each project (column O) | C61: Enter additional information about the aims of the project. This should include a short explanation of how this fits into the wider strategic plan. This might also include, for example, a brief explanation of which facilities the LA plans to improve.
B62: Local authorities should create a link to their wider strategic plan. They can include refer to more detailed information about specific projects by linking to documents that they publish on their website. This might include a consultation document or further details about the project.
B65: Required information about consultation
B66: Local authorities are required to consult parents and carers about their plans and they should consult other groups. They need to do this before they receive their allocation and list the groups consulted. They can also publish the plan before they have consulted and re-publish afterwards making any changes if required. Information needs to be set out in the consultation table that is below the project table on the input form.
B67: Column B (Group) | C67: Enter the type of group consulted and/or the group's name. For example, local parent group, VCS organisation or school.
B68: Column D (date and method of discussion) | C68: This should include whether and when meetings took place or if consultation took place via other means i.e. via email.
B69: Column F (Topic(s) of discussion) | C69: Include a summary of what the conversation was about.
B70: Column N (Outcome including any changes as a result of the conversation) | C70: Explain what points were agreed, what decisions or actions came out of the discussion, and what (if any) changes were, or will be made to plans.
B71: Other information
B72: Password: provision1 | C72: The purpose of the password is to unlock tabs or sheets that show how the spreadsheet works. You do not need to use the password to complete the spreadsheet.

Sheet Input form EXAMPLE
B1: Special provision plan
B2: Input form for Local Authority to complete
B4: Local authority | E4: Wirral | J4: Date of last update | L4: 2018-04-25
B6: Local authority's special provision fund allocation | E6: 500000 | H6: Total planned expenditure on projects: special provision fund | L6: 500000
B7: Other investment the local authority plans to make in SEND capital up until 2021 | E7: £xx,xxx | H7: Total planned expenditure on projects: other funding up until 2021
B9: The local authority is required to consult parents and carers to receive their allocation. Local authorities should use the box to the right to confirm that they have consulted with parents and carers about their plan and projects and complete the 'Consultation form' below. | J9: The local authority is or will be consulting parents and carers and will republish this plan before receiving their allocation
B11: Project information form
B12: Provision | G12: Investment in additional places (£) | I12: Number of additional places | L12: Investment in facilities (£) | N12: Total (£) | O12: Additional Information about each project
B13: Provision URN | C13: Provision name and address | D13: Provision category | E13: Ofsted Judgement | F13: Age range for project | G13: Special provision fund investment in additional places | H13: Other investment in additional places | I13: Special provision fund additional planned places | J13: Other investment additional planend places | K13: Total additional planned places | L13: Special provision fund investment in facilities | M13: Other investment in facilities | N13: Total investment in project | O13: Type of SEN or disability that project is designed to meet. | P13: LAs should use this section of the table to set out more details about the aims of the project. Beyond this further information can be listed in their strategic plan or directly on their local offer page.
B14: TBC | C14: Reserved for capital outcomes of the SEN Strategic Review. | D14: Other | K14: =SUM('[1]Input form'!$I14:$J14) -> 0 | L14: 500000 | N14: 500000 | O14: To be determined | P14: Allocation of the18/19, 19/20 and 20/21 funding stream will be decided once the external review of provision has been completed. Full consultation will take place before the money is allocated. A full update will be published once the externnal review is completed.
K18: =SUM(InputForm3[[#This Row],[Special provision fund additional planned places]:[Other investment additional planend places]]) -> 0 | N18: =SUM(G18:H18,L18:M18) -> 0
B21: Consultation form Consultation for all projects: list the groups that the local authority has consulted with and the date of the conversation. Local authorities are required to consult with parents and carers and should consult with other groups about how they plan to use their funding and set out information in the box below before they will receive their allocation.
B22: Group | D22: Date and method of discussion i.e. meeting or online consultation | F22: Topic(s) of discussion | O22: Outcome including any changes as a result of the consultation

Sheet Input form (hidden)
B1: Special provision plan
B2: Imput form for Local Authority to complete
B4: Local authority | E4: Example LA | J4: Date of last update
B6: Local authority's special provision fund allocation | E6: =INDEX('Do not change - workings'!V:V,MATCH(E4,'Do not change - workings'!R:R, 0)) -> 995000 | H6: Total planned expenditure on projects: special provision fund | L6: =SUM(InputForm[Special provision fund investment in additional places],InputForm[Special provision fund investment in facilities]) -> 995000
B7: Other investment the local authority plans to make in SEND capital up until 2021 | E7: 95000 | H7: Total planned expenditure on projects: other funding up until 2021 | L7: =SUM(InputForm[Other investment in additional places],InputForm[Other investment in facilities]) -> 95000 | O7: =IF(L7>E7,"Error: Exceeded funding: Other investment columns J and M should not exceed total amount in cell F7","") -> 
B9: The local authority is required to consult parents and carers to receive their allocation. Local authorities should use the box to the right to confirm that they have consulted with parents and carers about their plan and projects and complete the 'Consultation form' below. | J9: Confirm either that the LA has or will be consulting parents and carers
B11: Project information form
B12: Provision | G12: Investment in additional places (£) | I12: Number of additional places | L12: Investment in facilities (£) | N12: Total (£) | O12: Additional Information about each project
B13: Provision URN | C13: Provision name and address | D13: Provision category | E13: Ofsted Judgement | F13: Age range for project | G13: Special provision fund investment in additional places | H13: Other investment in additional places | I13: Special provision fund additional planned places | J13: Other investment additional planend places | K13: Total additional planned places | L13: Special provision fund investment in facilities | M13: Other investment in facilities | N13: Total investment in project | O13: Type of SEN or disability that project is designed to meet. | P13: LAs should use this section of the table to set out more details about the aims of the project. Beyond this further information can be listed in their strategic plan or directly on their local offer page.
B14: 131313 | C14: Example school A, Town road, Local Authority A | D14: Special provision | E14: Outstanding | F14: Primary, secondary and post-16 | G14: 280000 | H14: 0 | I14: 4 | J14: 0 | K14: =SUM(InputForm[[#This Row],[Special provision fund additional planned places]:[Other investment additional planend places]]) -> 4 | L14: 0 | M14: 0 | N14: =SUM(G14:H14,L14:M14) -> 280000 | O14: Multiple and complex learning difficulties. The school is designed to meet a wide range of needs. | P14: Expansion to outstanding special school. The investment is part of a wider package of investment to to reduce children's travel times to other local authorities and support them to be independent in their own community. Improved facilities such as expanding two class-rooms to enable pupils to move around the class-room independently and allow the teacher and teaching assistants sufficient space to facilitate group work. Work will take place over the summer of 2018. More details on the LAs website at: www.LAwebsite.gov.uk/education_plans.
B15: 232323 | C15: Example school B, School Lane, Local Authority A | D15: Mainstream provision (not unit) | E15: Good | F15: Secondary | G15: 360000 | H15: 0 | I15: 10 | J15: 0 | K15: =SUM(InputForm[[#This Row],[Special provision fund additional planned places]:[Other investment additional planend places]]) -> 10 | L15: 50000 | M15: 20000 | N15: 430000 | O15: Emotional, social and mental health difficulties | P15: Part of a project to create new places and add new facilities including calm rooms to support better mental health and wellbeing for pupils with EHC plans for emotional, social and mental health difficulties. These spaces are needed so that teachers and teaching assistants have a seperate space to talk to pupils seperate from the classroom. More details including timings on the LAs website at: www.LAwebsite.gov.uk/education_plans .
B16: 343414 | C16: Example school C, Country Road, Local Authority A | D16: Special unit or resourced provision | E16: Not yet inspected | F16: Secondary and post-16 | G16: 170000 | H16: 50000 | I16: 4 | J16: 2 | K16: =SUM(InputForm[[#This Row],[Special provision fund additional planned places]:[Other investment additional planend places]]) -> 6 | L16: 80000 | M16: 0 | N16: 300000 | O16: Autism including Asperger's syndrome | P16: Expansion to special unit at a mainstream school due to high parental demand and need for new places in this LA and neighbouring LAs x and y. Facilities improvement involves enlargements to a space that will be turned into a learning kitchen to help pupils with special educational needs and disabilties at the school learn cooking skills to support independent living. Work will take place in two stages in late 2018 More details on the LAs website at: www.LAwebsite.gov.uk/education_plans.
B17: 232323 | C17: Example school D, Mill Road, Local authority A | D17: Mainstream provision (not unit) | E17: Not inspected by Ofsted | F17: Secondary and post-16 | G17: 0 | H17: 0 | I17: 0 | J17: 0 | K17: =SUM(InputForm[[#This Row],[Special provision fund additional planned places]:[Other investment additional planend places]]) -> 0 | L17: 55000 | M17: 25000 | N17: 80000 | O17: This school is designed to meet the needs of those with a wide range of disabilities and SEN. The purpose of the extension is to meet emotional, social and mental health challenges. | P17: Facilities' improvements to a sixth-form college to better meet the needs of current and future pupils. This includes expanding classrooms in the that are unsuitable for non-ambulant pupils due to the size. The college is keen to promote inclusion. This is part of an overall programme where the college aims to include more pupils with SEN and disabilities. Enlarging the classroom would allow the teacher to run more workshops including with non-ambulant pupils working together in groups. More details on the LAs website at: www.LAwebsite.gov.uk/education_plans.
K18: =SUM(InputForm[[#This Row],[Special provision fund additional planned places]:[Other investment additional planend places]]) -> 0 | N18: =SUM(G18:H18,L18:M18) -> 0
B21: Consultation form Consultation for all projects: list the groups that the local authority has consulted with and the date of the conversation. Local authorities are required to consult with parents and carers and should consult with other groups about how they plan to use their funding and set out information in the box below before they will receive their allocation.
B22: Group | D22: Date and method of discussion i.e. meeting or online consultation | F22: Topic(s) of discussion | O22: Outcome including any changes as a result of the consultation
B23: Parent carer forum | D23: Meeting 10 May and 10 June. Email consultation about plan. | F23: Strategic plan and all project ideas. | N23: Forum recommended changes to project D including more focus on improving facilities. These changes are reflected in the project.
B24: Local headteachers | D24: Meetings of 12 May and 12 June | F24: Strategic plan and all project ideas. | N24: The group asked a number of questions about project at school C on practical aspects of how this will work and about staff training. Full details of the project and discussion are set out at www.localauthorityexample/projectC
B25: Headteachers and staff at the provision | D25: School visits that took place on 8 April (school A), 13 April (school B), 20 May (school C and school D), 1 June (school E). Follow-up telephone conversations also took place with each school. | F25: Initial visits to check need for, and viability of the project. Phone calls to discuss how these projects fit with the ethos of the school. Individual telephone calls around planning and project details. | N25: We made a number of changes following visits to each school. These included making the expansions smaller than initially proposed but more tailored to the school's needs. Project B had initially been focused entirely around new places. For example, conversations with the school led us to recognise the need to support the new and existing places with a calm room facility. The actions from these meetings are documented at localauthorityexample/projectconsultations.
B26: Headteachers and staff at the provision | D26: Teleconferences held on 3 March and 3 June | F26: Telekits about the overall strategy and ensuring an inclusive approach. | N26: This led to the decisions to include a learning kitchen at project A and allow children from different provision to be able to use this. The location of project A is specifically chosen as it is accessible to nearby schools with special units.
B27: Local voluntary and community sector organisation [name] | D27: Meetings on 11 April and 21 April | F27: The charity's ideas for how the funding will support children with special educational needs and disabilities. | N27: We took on board the charity's ideas [include further information]. The charity also advised that we consider how to improve facilities further for pupils with social and emotional difficulties. The local authority will look into this and report on this by date x.
B28: Local employer's group | D28: The council has so far attended 6 monthly meetings from January to June. | F28: How to help more young people with special educational needs and disabilities to get into employment. | N28: The group suggested and supported the idea of a learning kitchen. We are working with them to ensure if will be used to help young people get skills for employment as well as independence.

Sheet Plan output
B1: ='Input form'!E4 -> Example LA
B3: Special provision fund capital plan | G3: Total planned investment in additional places | H3: £xxx,xxx | I3: Total planned investment to improve existing schools' facilities | J3: £xxx,xxx
G4: Total planned number of additional places | H4: xx | I4: Total planned number of improvement projects | J4: x
B6: Special provision fund allocation | C6: £xxx,xxx | G6: £s investment for planned additional places | H6: £xxx,xxx | I6: £s investment in facilities | J6: £xxx,xxx
G7: No. of additional places planned | H7: xx | I7: No. of facilities improvement projects | J7: x
B9: Other funding other than the SEND capital allocation (where applicable) | C9: £xx,xxx | G9: £s investment for planned additional places | H9: £xx,xxx | I9: £s investment in facilities | J9: £xx,xxx
G10: No. of additional places planned | H10: x | I10: No. of facilities improvement projects | J10: x
B12: More information about investment in provision for pupils with education, health and care (EHC) plans up until 2021

Sheet Do not change - workings (hidden)
B1: Spreadsheet workings | L1: Provision | R1: Allocations | S1: Copied from https://www.gov.uk/government/publications/send-provision-capital-funding-for-pupils-with-ehc-plans at 20 March 2017
B2: Local authority: | F2: ='Input form'!E4 -> Example LA | Q2: Special provision fund: Allocation for local authorities from 2018/19 to 2020/21
B3: =F2 -> Example LA | L3: Spreadsheet workings: Codes | Q3: Published March 2017
L4: Lists of categories | Q4: Published March 2017 | Y4: Consultation
B5: Local authority's special provision fund allocation | F5: =INDEX(V:V,MATCH(F2,R:R, 0)) -> 995000 | L5: Groups to select from | M5: Sub-groups | O5: Ofsted inspection judgment | Q5: LA Number | R5: Local Authority name | S5: 2018/19 | T5: 2019/20 | U5: 2020/21 | V5: LAs total allocation | Y5: The local authority has consulted parents and carers
B6: Other investment the local authority plans to make in SEND capital | F6: =SUM('Input form'!H14:H18)+SUM('Input form'!M14:M18) -> 95000 | L6: Provision category | M6: Provision type | O6: Outstanding | Y6: The local authority is or will be consulting parents and carers and will republish this plan before receiving their allocation
L7: Alternative provision/PRU | M7: Academy (or free school) Alternative provision | O7: Good | R7: Totals | S7: 71666666.67 | T7: 71666666.67 | U7: 71666666.67 | V7: 215000000 | Y7: Confirm either that the LA has or will be consulting parents and carers
B8: Investment by quality | M8: Pupil referral unit (LA maintained) | O8: Requires Improvement | R8: SELECT LOCAL AUTHORITY
C9: Investment in new places | E9: Investment in facilities improvements | H9: No. of places created from: | J9: Places | L9: Independent and non-maintained | M9: Independent school | O9: Inadequate | Q9: 301 | R9: Barking and Dagenham | S9: 945715.6047 | T9: 945715.6047 | U9: 945715.6047 | V9: 2837146.814 | Y9: Limits set on cells
B10: Quality (Ofsted rating) | C10: Special provision fund | D10: Other investment | E10: Special provision fund | F10: Other investment | G10: Total investment | H10: Special provision fund | I10: Other investment | J10: Total no. new places planned | M10: Non-Maintained Special School | O10: Not yet inspected | Q10: 302 | R10: Barnet | S10: 1001778.281 | T10: 1001778.281 | U10: 1001778.281 | V10: 3005334.842 | Y10: Input form, project information form: rows I and J have an entry limit of 200 places
B11: outstanding | C11: =SUMIF(InputForm[Ofsted Judgement],$B11,InputForm[Special provision fund investment in additional places]) -> 280000 | D11: =SUMIF(InputForm[Ofsted Judgement],$B11,InputForm[Other investment in additional places]) -> 0 | E11: =SUMIF(InputForm[Ofsted Judgement],$B11,InputForm[Special provision fund investment in facilities]) -> 0 | F11: =SUMIF(InputForm[Ofsted Judgement],$B11,InputForm[Other investment in facilities]) -> 0 | G11: =SUM(E11:F11) -> 0 | H11: =SUMIF(InputForm[Ofsted Judgement],$B11,InputForm[Special provision fund additional planned places]) -> 4 | I11: =SUMIF(InputForm[Ofsted Judgement],$B11,InputForm[Other investment additional planend places]) -> 0 | J11: =SUM(H11:I11) -> 4 | M11: Other independent special school | O11: Not inspected by Ofsted | Q11: 370 | R11: Barnsley | S11: 260425.4536 | T11: 260425.4536 | U11: 260425.4536 | V11: 781276.3608 | Y11: Input form, project information form: row L has an expenditure limit of the selected special provision fund allocation i.e. the LA cannot invest more special provision fund money that it will receive
B12: good | C12: =SUMIF(InputForm[Ofsted Judgement],$B12,InputForm[Special provision fund investment in additional places]) -> 360000 | D12: =SUMIF(InputForm[Ofsted Judgement],$B12,InputForm[Other investment in additional places]) -> 0 | E12: =SUMIF(InputForm[Ofsted Judgement],$B12,InputForm[Special provision fund investment in facilities]) -> 50000 | F12: =SUMIF(InputForm[Ofsted Judgement],$B12,InputForm[Other investment in facilities]) -> 20000 | G12: 70000 | H12: =SUMIF(InputForm[Ofsted Judgement],$B12,InputForm[Special provision fund additional planned places]) -> 10 | I12: =SUMIF(InputForm[Ofsted Judgement],$B12,InputForm[Other investment additional planend places]) -> 0 | J12: =SUM(H12:I12) -> 10 | L12: Mainstream provision (not unit) | M12: Academy (or free school) 16-19 (mainstream) | Q12: 800 | R12: Bath and North East Somerset | S12: 192331.3817 | T12: 192331.3817 | U12: 192331.3817 | V12: 576994.1452 | Y12: Input form, project information form: row J has an expenditure limit of the entered figure for other investment i.e. the LA cannot type that they will invest more in one project than the total sum of their expenditure
B13: requires improvement | C13: =SUMIF(InputForm[Ofsted Judgement],$B13,InputForm[Special provision fund investment in additional places]) -> 0 | D13: =SUMIF(InputForm[Ofsted Judgement],$B13,InputForm[Other investment in additional places]) -> 0 | E13: =SUMIF(InputForm[Ofsted Judgement],$B13,InputForm[Special provision fund investment in facilities]) -> 0 | F13: =SUMIF(InputForm[Ofsted Judgement],$B13,InputForm[Other investment in facilities]) -> 0 | G13: 0 | H13: =SUMIF(InputForm[Ofsted Judgement],$B13,InputForm[Special provision fund additional planned places]) -> 0 | I13: =SUMIF(InputForm[Ofsted Judgement],$B13,InputForm[Other investment additional planend places]) -> 0 | J13: 0 | M13: Academy or free school (mainstream) | Q13: 822 | R13: Bedford | S13: 309620.2426 | T13: 309620.2426 | U13: 309620.2426 | V13: 928860.7279 | Y13: Input form, L7: Conditional formatting if rows
B14: inadequate | C14: =SUMIF(InputForm[Ofsted Judgement],$B14,InputForm[Special provision fund investment in additional places]) -> 0 | D14: =SUMIF(InputForm[Ofsted Judgement],$B14,InputForm[Other investment in additional places]) -> 0 | E14: =SUMIF(InputForm[Ofsted Judgement],$B14,InputForm[Special provision fund investment in facilities]) -> 0 | F14: =SUMIF(InputForm[Ofsted Judgement],$B14,InputForm[Other investment in facilities]) -> 0 | G14: 0 | H14: =SUMIF(InputForm[Ofsted Judgement],$B14,InputForm[Special provision fund additional planned places]) -> 0 | I14: =SUMIF(InputForm[Ofsted Judgement],$B14,InputForm[Other investment additional planend places]) -> 0 | J14: 0 | M14: Maintained school (including community, foundation school) | Q14: 303 | R14: Bexley | S14: 684008.2385 | T14: 684008.2385 | U14: 684008.2385 | V14: 2052024.715 | Y14: Input form, project information form: Word limits of 200 characters to row O
B15: not yet inspected | C15: =SUMIF(InputForm[Ofsted Judgement],$B15,InputForm[Special provision fund investment in additional places]) -> 170000 | D15: =SUMIF(InputForm[Ofsted Judgement],$B15,InputForm[Other investment in additional places]) -> 50000 | E15: =SUMIF(InputForm[Ofsted Judgement],$B15,InputForm[Special provision fund investment in facilities]) -> 80000 | F15: =SUMIF(InputForm[Ofsted Judgement],$B15,InputForm[Other investment in facilities]) -> 0 | G15: 80000 | H15: =SUMIF(InputForm[Ofsted Judgement],$B15,InputForm[Special provision fund additional planned places]) -> 4 | I15: =SUMIF(InputForm[Ofsted Judgement],$B15,InputForm[Other investment additional planend places]) -> 2 | J15: 6 | M15: LA nursery school | Q15: 330 | R15: Birmingham | S15: 1423958.491 | T15: 1423958.491 | U15: 1423958.491 | V15: 4271875.472 | Y15: Input form, project information form: Word limits of 600 characters to row P
B16: not inspected by Ofsted | C16: =SUMIF(InputForm[Ofsted Judgement],$B16,InputForm[Special provision fund investment in additional places]) -> 0 | D16: =SUMIF(InputForm[Ofsted Judgement],$B16,InputForm[Other investment in additional places]) -> 0 | E16: =SUMIF(InputForm[Ofsted Judgement],$B16,InputForm[Special provision fund investment in facilities]) -> 55000 | F16: =SUMIF(InputForm[Ofsted Judgement],$B16,InputForm[Other investment in facilities]) -> 25000 | G16: 80000 | H16: =SUMIF(InputForm[Ofsted Judgement],$B16,InputForm[Special provision fund additional planned places]) -> 0 | I16: =SUMIF(InputForm[Ofsted Judgement],$B16,InputForm[Other investment additional planend places]) -> 0 | J16: 0 | M16: Studio school | Q16: 889 | R16: Blackburn with Darwen | S16: 166666.6667 | T16: 166666.6667 | U16: 166666.6667 | V16: 500000 | Y16: Input form, consultation form: Word limits of 200 characters to row B
B17: Total | C17: =SUM(C11:C16) -> 810000 | D17: 50000 | E17: 185000 | F17: 45000 | G17: 230000 | H17: 18 | I17: 2 | J17: 20 | M17: University technical college | Q17: 890 | R17: Blackpool | S17: 166666.6667 | T17: 166666.6667 | U17: 166666.6667 | V17: 500000 | Y17: Input form, consultation form: Word limits of 200 characters to row D
L18: Special provision | M18: Academy (or free school) special | Q18: 350 | R18: Bolton | S18: 275943.4841 | T18: 275943.4841 | U18: 275943.4841 | V18: 827830.4523 | Y18: Input form, consultation form: Word limits of 600 characters to row F
B19: Investment by provision type | M19: Maintained special school (including community and foundations schools) | Q19: 837 | R19: Bournemouth | S19: 317883.4214 | T19: 317883.4214 | U19: 317883.4214 | V19: 953650.2641 | Y19: Input form, consultation form: Word limits of 600 characters to row N
C20: Investment in new places | E20: Investment in facilities improvements | H20: No. of places created from: | J20: Places | L20: Special unit or resourced provision | M20: Special unit/ resourced provision at academy | Q20: 867 | R20: Bracknell Forest | S20: 250926.9322 | T20: 250926.9322 | U20: 250926.9322 | V20: 752780.7965
B21: Provision type | C21: Special provision fund | D21: Other investment | E21: Special provision fund | F21: Other investment | G21: Total investment | H21: Special provision fund | I21: Other investment | J21: Total no. new places planned | M21: Special unit/ resourced provision at free school | Q21: 380 | R21: Bradford | S21: 219322.2522 | T21: 219322.2522 | U21: 219322.2522 | V21: 657966.7565
B22: =L30 -> Alternative provision/PRU | C22: =SUMIF(InputForm[Provision category],$B22,InputForm[Special provision fund investment in additional places]) -> 0 | D22: =SUMIF(InputForm[Provision category],$B22,InputForm[Other investment in additional places]) -> 0 | E22: =SUMIF(InputForm[Provision category],$B22,InputForm[Special provision fund investment in facilities]) -> 0 | F22: =SUMIF(InputForm[Provision category],$B22,InputForm[Other investment in facilities]) -> 0 | G22: =SUM(E22:F22) -> 0 | H22: =SUMIF(InputForm[Provision category],$B22,InputForm[Special provision fund additional planned places]) -> 0 | I22: =SUMIF(InputForm[Provision category],$B22,InputForm[Other investment additional planend places]) -> 0 | J22: =SUM(H22:I22) -> 0 | M22: Special unit/ resourced provision at other school | Q22: 304 | R22: Brent | S22: 569221.9775 | T22: 569221.9775 | U22: 569221.9775 | V22: 1707665.933
B23: Independent and non-maintained | C23: =SUMIF(InputForm[Provision category],$B23,InputForm[Special provision fund investment in additional places]) -> 0 | D23: =SUMIF(InputForm[Provision category],$B23,InputForm[Other investment in additional places]) -> 0 | E23: =SUMIF(InputForm[Provision category],$B23,InputForm[Special provision fund investment in facilities]) -> 0 | F23: =SUMIF(InputForm[Provision category],$B23,InputForm[Other investment in facilities]) -> 0 | G23: 0 | H23: =SUMIF(InputForm[Provision category],$B23,InputForm[Special provision fund additional planned places]) -> 0 | I23: =SUMIF(InputForm[Provision category],$B23,InputForm[Other investment additional planend places]) -> 0 | J23: 0 | L23: Other | M23: Other school | Q23: 846 | R23: Brighton and Hove | S23: 166666.6667 | T23: 166666.6667 | U23: 166666.6667 | V23: 500000
B24: Mainstream provision (not unit) | C24: =SUMIF(InputForm[Provision category],$B24,InputForm[Special provision fund investment in additional places]) -> 360000 | D24: =SUMIF(InputForm[Provision category],$B24,InputForm[Other investment in additional places]) -> 0 | E24: =SUMIF(InputForm[Provision category],$B24,InputForm[Special provision fund investment in facilities]) -> 105000 | F24: =SUMIF(InputForm[Provision category],$B24,InputForm[Other investment in facilities]) -> 45000 | G24: 150000 | H24: =SUMIF(InputForm[Provision category],$B24,InputForm[Special provision fund additional planned places]) -> 10 | I24: =SUMIF(InputForm[Provision category],$B24,InputForm[Other investment additional planend places]) -> 0 | J24: 10 | M24: Other nursery or early years provision | Q24: 801 | R24: Bristol, City of | S24: 840521.7334 | T24: 840521.7334 | U24: 840521.7334 | V24: 2521565.2
B25: Special provision | C25: =SUMIF(InputForm[Provision category],$B25,InputForm[Special provision fund investment in additional places]) -> 280000 | D25: =SUMIF(InputForm[Provision category],$B25,InputForm[Other investment in additional places]) -> 0 | E25: =SUMIF(InputForm[Provision category],$B25,InputForm[Special provision fund investment in facilities]) -> 0 | F25: =SUMIF(InputForm[Provision category],$B25,InputForm[Other investment in facilities]) -> 0 | G25: 0 | H25: =SUMIF(InputForm[Provision category],$B25,InputForm[Special provision fund additional planned places]) -> 4 | I25: =SUMIF(InputForm[Provision category],$B25,InputForm[Other investment additional planend places]) -> 0 | J25: 4 | M25: Other sixth-form or FE college | Q25: 305 | R25: Bromley | S25: 865509.8549 | T25: 865509.8549 | U25: 865509.8549 | V25: 2596529.565
B26: Special unit or resourced provision | C26: =SUMIF(InputForm[Provision category],$B26,InputForm[Special provision fund investment in additional places]) -> 170000 | D26: =SUMIF(InputForm[Provision category],$B26,InputForm[Other investment in additional places]) -> 50000 | E26: =SUMIF(InputForm[Provision category],$B26,InputForm[Special provision fund investment in facilities]) -> 80000 | F26: =SUMIF(InputForm[Provision category],$B26,InputForm[Other investment in facilities]) -> 0 | G26: 80000 | H26: =SUMIF(InputForm[Provision category],$B26,InputForm[Special provision fund additional planned places]) -> 4 | I26: =SUMIF(InputForm[Provision category],$B26,InputForm[Other investment additional planend places]) -> 2 | J26: 6 | Q26: 825 | R26: Buckinghamshire | S26: 824492.3526 | T26: 824492.3526 | U26: 824492.3526 | V26: 2473477.058
B27: Other | C27: =SUMIF(InputForm[Provision category],$B27,InputForm[Special provision fund investment in additional places]) -> 0 | D27: =SUMIF(InputForm[Provision category],$B27,InputForm[Other investment in additional places]) -> 0 | E27: =SUMIF(InputForm[Provision category],$B27,InputForm[Special provision fund investment in facilities]) -> 0 | F27: =SUMIF(InputForm[Provision category],$B27,InputForm[Other investment in facilities]) -> 0 | G27: 0 | H27: =SUMIF(InputForm[Provision category],$B27,InputForm[Special provision fund additional planned places]) -> 0 | I27: =SUMIF(InputForm[Provision category],$B27,InputForm[Other investment additional planend places]) -> 0 | J27: 0 | Q27: 351 | R27: Bury | S27: 194899.4639 | T27: 194899.4639 | U27: 194899.4639 | V27: 584698.3918
B28: Total | C28: =SUM(C22:C27) -> 810000 | D28: 50000 | E28: 185000 | F28: 45000 | G28: 230000 | H28: 18 | I28: 2 | J28: 20 | Q28: 381 | R28: Calderdale | S28: 166666.6667 | T28: 166666.6667 | U28: 166666.6667 | V28: 500000
L29: Provision category | Q29: 873 | R29: Cambridgeshire | S29: 832763.4242 | T29: 832763.4242 | U29: 832763.4242 | V29: 2498290.273
L30: Alternative provision/PRU | Q30: 202 | R30: Camden | S30: 437500.276 | T30: 437500.276 | U30: 437500.276 | V30: 1312500.828
L31: Independent and non-maintained | Q31: 823 | R31: Central Bedfordshire | S31: 549726.9184 | T31: 549726.9184 | U31: 549726.9184 | V31: 1649180.755
L32: Mainstream provision (not unit) | Q32: 895 | R32: Cheshire East | S32: 197896.6424 | T32: 197896.6424 | U32: 197896.6424 | V32: 593689.9273
L33: Special provision | Q33: 896 | R33: Cheshire West and Chester | S33: 180458.823 | T33: 180458.823 | U33: 180458.823 | V33: 541376.469
L34: Special unit or resourced provision | Q34: 908 | R34: Cornwall | S34: 637771.8063 | T34: 637771.8063 | U34: 637771.8063 | V34: 1913315.419
L35: Other | Q35: 840 | R35: County Durham | S35: 430929.7091 | T35: 430929.7091 | U35: 430929.7091 | V35: 1292789.127
Q36: 331 | R36: Coventry | S36: 775574.3906 | T36: 775574.3906 | U36: 775574.3906 | V36: 2326723.172
Q37: 306 | R37: Croydon | S37: 968854.5919 | T37: 968854.5919 | U37: 968854.5919 | V37: 2906563.776
L38: Age range | Q38: 909 | R38: Cumbria | S38: 166666.6667 | T38: 166666.6667 | U38: 166666.6667 | V38: 500000
L39: Under 5s | Q39: 841 | R39: Darlington | S39: 166666.6667 | T39: 166666.6667 | U39: 166666.6667 | V39: 500000
L40: Primary | Q40: 831 | R40: Derby | S40: 275162.2304 | T40: 275162.2304 | U40: 275162.2304 | V40: 825486.6913
L41: Secondary | Q41: 830 | R41: Derbyshire | S41: 427606.3056 | T41: 427606.3056 | U41: 427606.3056 | V41: 1282818.917
L42: Primary and secondary | Q42: 878 | R42: Devon | S42: 749284.5139 | T42: 749284.5139 | U42: 749284.5139 | V42: 2247853.542
L43: Post-16 | Q43: 371 | R43: Doncaster | S43: 166666.6667 | T43: 166666.6667 | U43: 166666.6667 | V43: 500000
L44: Secondary and post-16 | Q44: 835 | R44: Dorset | S44: 338317.6113 | T44: 338317.6113 | U44: 338317.6113 | V44: 1014952.834
L45: Primary, secondary and post-16 | Q45: 332 | R45: Dudley | S45: 243843.3638 | T45: 243843.3638 | U45: 243843.3638 | V45: 731530.0914
L46: Other category in 0-25 age-range (please specify in project description) | Q46: 307 | R46: Ealing | S46: 480478.4384 | T46: 480478.4384 | U46: 480478.4384 | V46: 1441435.315
Q47: 811 | R47: East Riding of Yorkshire | S47: 166666.6667 | T47: 166666.6667 | U47: 166666.6667 | V47: 500000
Q48: 845 | R48: East Sussex | S48: 603659.2669 | T48: 603659.2669 | U48: 603659.2669 | V48: 1810977.801
Q49: 308 | R49: Enfield | S49: 851655.2218 | T49: 851655.2218 | U49: 851655.2218 | V49: 2554965.665
Q50: 881 | R50: Essex | S50: 1916012.57 | T50: 1916012.57 | U50: 1916012.57 | V50: 5748037.709
Q51: 390 | R51: Gateshead | S51: 166666.6667 | T51: 166666.6667 | U51: 166666.6667 | V51: 500000
Q52: 916 | R52: Gloucestershire | S52: 650092.0215 | T52: 650092.0215 | U52: 650092.0215 | V52: 1950276.065
Q53: 203 | R53: Greenwich | S53: 680999.3698 | T53: 680999.3698 | U53: 680999.3698 | V53: 2042998.109
Q54: 204 | R54: Hackney | S54: 662722.2645 | T54: 662722.2645 | U54: 662722.2645 | V54: 1988166.793
Q55: 876 | R55: Halton | S55: 166666.6667 | T55: 166666.6667 | U55: 166666.6667 | V55: 500000
Q56: 205 | R56: Hammersmith and Fulham | S56: 166666.6667 | T56: 166666.6667 | U56: 166666.6667 | V56: 500000
Q57: 850 | R57: Hampshire | S57: 1262401.23 | T57: 1262401.23 | U57: 1262401.23 | V57: 3787203.69
Q58: 309 | R58: Haringey | S58: 212735.0729 | T58: 212735.0729 | U58: 212735.0729 | V58: 638205.2188
Q59: 310 | R59: Harrow | S59: 620575.7785 | T59: 620575.7785 | U59: 620575.7785 | V59: 1861727.336
Q60: 805 | R60: Hartlepool | S60: 166666.6667 | T60: 166666.6667 | U60: 166666.6667 | V60: 500000
Q61: 311 | R61: Havering | S61: 857386.045 | T61: 857386.045 | U61: 857386.045 | V61: 2572158.135
Q62: 884 | R62: Herefordshire | S62: 166666.6667 | T62: 166666.6667 | U62: 166666.6667 | V62: 500000
Q63: 919 | R63: Hertfordshire | S63: 2197224.565 | T63: 2197224.565 | U63: 2197224.565 | V63: 6591673.696
Q64: 312 | R64: Hillingdon | S64: 971963.8466 | T64: 971963.8466 | U64: 971963.8466 | V64: 2915891.54
Q65: 313 | R65: Hounslow | S65: 721492.9364 | T65: 721492.9364 | U65: 721492.9364 | V65: 2164478.809
Q66: 921 | R66: Isle of Wight | S66: 166666.6667 | T66: 166666.6667 | U66: 166666.6667 | V66: 500000
Q67: 206 | R67: Islington | S67: 442448.5445 | T67: 442448.5445 | U67: 442448.5445 | V67: 1327345.634
Q68: 207 | R68: Kensington and Chelsea | S68: 166666.6667 | T68: 166666.6667 | U68: 166666.6667 | V68: 500000
Q69: 886 | R69: Kent | S69: 2192654.501 | T69: 2192654.501 | U69: 2192654.501 | V69: 6577963.504
Q70: 810 | R70: Kingston upon Hull, City of | S70: 233138.9532 | T70: 233138.9532 | U70: 233138.9532 | V70: 699416.8595
Q71: 314 | R71: Kingston upon Thames | S71: 562816.0355 | T71: 562816.0355 | U71: 562816.0355 | V71: 1688448.106
Q72: 382 | R72: Kirklees | S72: 352244.0831 | T72: 352244.0831 | U72: 352244.0831 | V72: 1056732.249
Q73: 340 | R73: Knowsley | S73: 166666.6667 | T73: 166666.6667 | U73: 166666.6667 | V73: 500000
Q74: 208 | R74: Lambeth | S74: 393908.8223 | T74: 393908.8223 | U74: 393908.8223 | V74: 1181726.467
Q75: 888 | R75: Lancashire | S75: 683199.6681 | T75: 683199.6681 | U75: 683199.6681 | V75: 2049599.004
Q76: 383 | R76: Leeds | S76: 1079028.73 | T76: 1079028.73 | U76: 1079028.73 | V76: 3237086.189
Q77: 856 | R77: Leicester | S77: 524722.9815 | T77: 524722.9815 | U77: 524722.9815 | V77: 1574168.944
Q78: 855 | R78: Leicestershire | S78: 709069.4682 | T78: 709069.4682 | U78: 709069.4682 | V78: 2127208.405
Q79: 209 | R79: Lewisham | S79: 773332.7744 | T79: 773332.7744 | U79: 773332.7744 | V79: 2319998.323
Q80: 925 | R80: Lincolnshire | S80: 771411.5047 | T80: 771411.5047 | U80: 771411.5047 | V80: 2314234.514
Q81: 341 | R81: Liverpool | S81: 514481.826 | T81: 514481.826 | U81: 514481.826 | V81: 1543445.478
Q82: 821 | R82: Luton | S82: 429455.2694 | T82: 429455.2694 | U82: 429455.2694 | V82: 1288365.808
Q83: 352 | R83: Manchester | S83: 831145.0975 | T83: 831145.0975 | U83: 831145.0975 | V83: 2493435.292
Q84: 887 | R84: Medway | S84: 459324.7483 | T84: 459324.7483 | U84: 459324.7483 | V84: 1377974.245
Q85: 315 | R85: Merton | S85: 491430.2411 | T85: 491430.2411 | U85: 491430.2411 | V85: 1474290.723
Q86: 806 | R86: Middlesbrough | S86: 166666.6667 | T86: 166666.6667 | U86: 166666.6667 | V86: 500000
Q87: 826 | R87: Milton Keynes | S87: 635366.0805 | T87: 635366.0805 | U87: 635366.0805 | V87: 1906098.242
Q88: 391 | R88: Newcastle upon Tyne | S88: 314415.2338 | T88: 314415.2338 | U88: 314415.2338 | V88: 943245.7014
Q89: 316 | R89: Newham | S89: 746759.7122 | T89: 746759.7122 | U89: 746759.7122 | V89: 2240279.137
Q90: 926 | R90: Norfolk | S90: 908832.4411 | T90: 908832.4411 | U90: 908832.4411 | V90: 2726497.323
Q91: 812 | R91: North East Lincolnshire | S91: 166666.6667 | T91: 166666.6667 | U91: 166666.6667 | V91: 500000
Q92: 813 | R92: North Lincolnshire | S92: 166666.6667 | T92: 166666.6667 | U92: 166666.6667 | V92: 500000
Q93: 802 | R93: North Somerset | S93: 260161.2749 | T93: 260161.2749 | U93: 260161.2749 | V93: 780483.8246
Q94: 392 | R94: North Tyneside | S94: 166666.6667 | T94: 166666.6667 | U94: 166666.6667 | V94: 500000
Q95: 815 | R95: North Yorkshire | S95: 166666.6667 | T95: 166666.6667 | U95: 166666.6667 | V95: 500000
Q96: 928 | R96: Northamptonshire | S96: 940580.9489 | T96: 940580.9489 | U96: 940580.9489 | V96: 2821742.847
Q97: 929 | R97: Northumberland | S97: 166666.6667 | T97: 166666.6667 | U97: 166666.6667 | V97: 500000
Q98: 892 | R98: Nottingham | S98: 419658.0305 | T98: 419658.0305 | U98: 419658.0305 | V98: 1258974.092
Q99: 891 | R99: Nottinghamshire | S99: 848600.7784 | T99: 848600.7784 | U99: 848600.7784 | V99: 2545802.335
Q100: 353 | R100: Oldham | S100: 166666.6667 | T100: 166666.6667 | U100: 166666.6667 | V100: 500000
Q101: 931 | R101: Oxfordshire | S101: 818155.2657 | T101: 818155.2657 | U101: 818155.2657 | V101: 2454465.797
Q102: 874 | R102: Peterborough | S102: 368245.1243 | T102: 368245.1243 | U102: 368245.1243 | V102: 1104735.373
Q103: 879 | R103: Plymouth | S103: 254566.5311 | T103: 254566.5311 | U103: 254566.5311 | V103: 763699.5932
Q104: 836 | R104: Poole | S104: 167549.3123 | T104: 167549.3123 | U104: 167549.3123 | V104: 502647.9369
Q105: 851 | R105: Portsmouth | S105: 256869.443 | T105: 256869.443 | U105: 256869.443 | V105: 770608.3291
Q106: 870 | R106: Reading | S106: 273709.809 | T106: 273709.809 | U106: 273709.809 | V106: 821129.427
Q107: 317 | R107: Redbridge | S107: 984636.0042 | T107: 984636.0042 | U107: 984636.0042 | V107: 2953908.013
Q108: 807 | R108: Redcar and Cleveland | S108: 166666.6667 | T108: 166666.6667 | U108: 166666.6667 | V108: 500000
Q109: 318 | R109: Richmond upon Thames | S109: 531957.0437 | T109: 531957.0437 | U109: 531957.0437 | V109: 1595871.131
Q110: 354 | R110: Rochdale | S110: 166666.6667 | T110: 166666.6667 | U110: 166666.6667 | V110: 500000
Q111: 372 | R111: Rotherham | S111: 166666.6667 | T111: 166666.6667 | U111: 166666.6667 | V111: 500000
Q112: 857 | R112: Rutland | S112: 166666.6667 | T112: 166666.6667 | U112: 166666.6667 | V112: 500000
Q113: 355 | R113: Salford | S113: 421362.9905 | T113: 421362.9905 | U113: 421362.9905 | V113: 1264088.972
Q114: 333 | R114: Sandwell | S114: 521462.0172 | T114: 521462.0172 | U114: 521462.0172 | V114: 1564386.051
Q115: 343 | R115: Sefton | S115: 166666.6667 | T115: 166666.6667 | U115: 166666.6667 | V115: 500000
Q116: 373 | R116: Sheffield | S116: 496094.4105 | T116: 496094.4105 | U116: 496094.4105 | V116: 1488283.232
Q117: 893 | R117: Shropshire | S117: 166666.6667 | T117: 166666.6667 | U117: 166666.6667 | V117: 500000
Q118: 871 | R118: Slough | S118: 342268.4925 | T118: 342268.4925 | U118: 342268.4925 | V118: 1026805.478
Q119: 334 | R119: Solihull | S119: 278493.564 | T119: 278493.564 | U119: 278493.564 | V119: 835480.6919
Q120: 933 | R120: Somerset | S120: 572131.2645 | T120: 572131.2645 | U120: 572131.2645 | V120: 1716393.793
Q121: 803 | R121: South Gloucestershire | S121: 398353.8688 | T121: 398353.8688 | U121: 398353.8688 | V121: 1195061.607
Q122: 393 | R122: South Tyneside | S122: 166666.6667 | T122: 166666.6667 | U122: 166666.6667 | V122: 500000
Q123: 852 | R123: Southampton | S123: 408457.4364 | T123: 408457.4364 | U123: 408457.4364 | V123: 1225372.309
Q124: 882 | R124: Southend-on-Sea | S124: 230167.4031 | T124: 230167.4031 | U124: 230167.4031 | V124: 690502.2092
Q125: 210 | R125: Southwark | S125: 549624.9719 | T125: 549624.9719 | U125: 549624.9719 | V125: 1648874.916
Q126: 342 | R126: St Helens | S126: 166666.6667 | T126: 166666.6667 | U126: 166666.6667 | V126: 500000
Q127: 860 | R127: Staffordshire | S127: 311412.4585 | T127: 311412.4585 | U127: 311412.4585 | V127: 934237.3756
Q128: 356 | R128: Stockport | S128: 321930.7969 | T128: 321930.7969 | U128: 321930.7969 | V128: 965792.3907
Q129: 808 | R129: Stockton-on-Tees | S129: 206434.5077 | T129: 206434.5077 | U129: 206434.5077 | V129: 619303.5231
Q130: 861 | R130: Stoke-on-Trent | S130: 226043.867 | T130: 226043.867 | U130: 226043.867 | V130: 678131.6009
Q131: 935 | R131: Suffolk | S131: 461375.7685 | T131: 461375.7685 | U131: 461375.7685 | V131: 1384127.306
Q132: 394 | R132: Sunderland | S132: 166666.6667 | T132: 166666.6667 | U132: 166666.6667 | V132: 500000
Q133: 936 | R133: Surrey | S133: 1976696.433 | T133: 1976696.433 | U133: 1976696.433 | V133: 5930089.299
Q134: 319 | R134: Sutton | S134: 616523.9348 | T134: 616523.9348 | U134: 616523.9348 | V134: 1849571.805
Q135: 866 | R135: Swindon | S135: 325873.1867 | T135: 325873.1867 | U135: 325873.1867 | V135: 977619.56
Q136: 357 | R136: Tameside | S136: 211253.9412 | T136: 211253.9412 | U136: 211253.9412 | V136: 633761.8235
Q137: 894 | R137: Telford and Wrekin | S137: 166666.6667 | T137: 166666.6667 | U137: 166666.6667 | V137: 500000
Q138: 883 | R138: Thurrock | S138: 357094.3915 | T138: 357094.3915 | U138: 357094.3915 | V138: 1071283.174
Q139: 880 | R139: Torbay | S139: 166666.6667 | T139: 166666.6667 | U139: 166666.6667 | V139: 500000
Q140: 211 | R140: Tower Hamlets | S140: 1181119.829 | T140: 1181119.829 | U140: 1181119.829 | V140: 3543359.486
Q141: 358 | R141: Trafford | S141: 344138.2886 | T141: 344138.2886 | U141: 344138.2886 | V141: 1032414.866
Q142: 384 | R142: Wakefield | S142: 302487.5673 | T142: 302487.5673 | U142: 302487.5673 | V142: 907462.7018
Q143: 335 | R143: Walsall | S143: 319228.5905 | T143: 319228.5905 | U143: 319228.5905 | V143: 957685.7715
Q144: 320 | R144: Waltham Forest | S144: 518794.9388 | T144: 518794.9388 | U144: 518794.9388 | V144: 1556384.816
Q145: 212 | R145: Wandsworth | S145: 634235.088 | T145: 634235.088 | U145: 634235.088 | V145: 1902705.264
Q146: 877 | R146: Warrington | S146: 173309.3443 | T146: 173309.3443 | U146: 173309.3443 | V146: 519928.033
Q147: 937 | R147: Warwickshire | S147: 424524.184 | T147: 424524.184 | U147: 424524.184 | V147: 1273572.552
Q148: 869 | R148: West Berkshire | S148: 166666.6667 | T148: 166666.6667 | U148: 166666.6667 | V148: 500000
Q149: 938 | R149: West Sussex | S149: 1085113.901 | T149: 1085113.901 | U149: 1085113.901 | V149: 3255341.702
Q150: 213 | R150: Westminster | S150: 479801.3588 | T150: 479801.3588 | U150: 479801.3588 | V150: 1439404.076
Q151: 359 | R151: Wigan | S151: 166666.6667 | T151: 166666.6667 | U151: 166666.6667 | V151: 500000
Q152: 865 | R152: Wiltshire | S152: 266977.564 | T152: 266977.564 | U152: 266977.564 | V152: 800932.6921
Q153: 868 | R153: Windsor and Maidenhead | S153: 240923.8785 | T153: 240923.8785 | U153: 240923.8785 | V153: 722771.6355
Q154: 344 | R154: Wirral | S154: 166666.6667 | T154: 166666.6667 | U154: 166666.6667 | V154: 500000
Q155: 872 | R155: Wokingham | S155: 265760.3775 | T155: 265760.3775 | U155: 265760.3775 | V155: 797281.1325
Q156: 336 | R156: Wolverhampton | S156: 386190.2632 | T156: 386190.2632 | U156: 386190.2632 | V156: 1158570.79
Q157: 885 | R157: Worcestershire | S157: 361888.1688 | T157: 361888.1688 | U157: 361888.1688 | V157: 1085664.506
Q158: 816 | R158: York | S158: 196926.2716 | T158: 196926.2716 | U158: 196926.2716 | V158: 590778.8149
Q159: 900 | R159: Example LA | S159: =T159/3 -> 36851.85185 | T159: =U159/3 -> 110555.5556 | U159: =V159/3 -> 331666.6667 | V159: 995000
